Cogmind - Beta 17 @@@ ROGUE MODE // 2026.06.24 @ 16:31:49 Player: foolish jester Result: Destroyed by 41-7NG(R) with Subdweller Shrapnel Launcher Performance ------------- Evolutions (0) 0 Regions Visited (2) 400 Robots Destroyed (9) 45 Value Destroyed (255) 255 Prototype IDs (0) 0 Alien Tech Used (0) 0 Bonus (0) 0 TOTAL SCORE: 700 Bonus ------- None Cogmind --------- Core Integrity 0/250 Matter 300/300 Energy 160/160 System Corruption 1% Temperature Cool (0) Movement Treading (260) Ox1 Location -10/Subcaves Parts ------- > --- POWER (1) -------- Light Nuclear Core > --- PROPULSION (2) --- Spiked Treads Flight Unit > --- UTILITY (2) ------ Scrap Shield > --- WEAPON (2) ------- EM Pulse Gun Hammer > --- INVENTORY (5) ---- Ion Engine Compact Wheel Flight Unit Subdweller Beam Cannon Dirty Datajack (20) Peak State ------------ > --- POWER ------------ Light Nuclear Core > --- PROPULSION ------- Spiked Treads Flight Unit > --- UTILITY ---------- Scrap Shield > --- WEAPON ----------- EM Pulse Gun Hammer > --- INVENTORY -------- Ion Engine Compact Wheel Flight Unit Subdweller Beam Cannon Dirty Datajack [Rating: 13] Favorites ----------- Power Light Ion Engine Engine Light Ion Engine Power Core Light Nuclear Core Propulsion Hover Unit Treads Light Treads Wheel Compact Wheel Hover Unit Hover Unit Flight Unit Flight Unit Utility Terrain Scanner Device Terrain Scanner Storage Small Storage Unit Processor Signal Interpreter Protection Scrap Shield Weapon Light Assault Rifle Energy Gun EM Pulse Gun Ballistic Gun Light Assault Rifle Launcher Grenade Launcher Impact Weapon Hammer Build | -11 -10 -10 ------- Run | Yrd Mat Sub Slots Evolved . | . . . Power . | . . . Propulsion . | . . . Utility . | . . . Weapon . | . . . Parts Attached 21 | 6 11 4 Power 3 | 1 1 1 Engine 2 | 1 1 . Core 1 | . . 1 Reactor . | . . . Propulsion 9 | 2 5 2 Treads 2 | 1 . 1 Leg . | . . . Wheel 2 | 1 1 . Hover 2 | . 2 . Flight 3 | . 2 1 Utility 4 | 1 2 1 Device 1 | . 1 . Storage 1 | 1 . . Processor 1 | . 1 . Hackware . | . . . Protection 1 | . . 1 Artifact . | . . . Weapon 5 | 2 3 . Energy Gun 2 | 1 1 . Energy Cannon . | . . . Ballistic Gun 1 | 1 . . Ballistic Cannon . | . . . Launcher 1 | . 1 . Special Weapon . | . . . Impact Weapon 1 | . 1 . Slashing Weapon . | . . . Piercing Weapon . | . . . Special Melee Weapon . | . . . Unidentified Prototypes . | . . . Parts Lost 5 | . 3 2 Power 1 | . . 1 Propulsion 2 | . 1 1 Utility . | . . . Weapon 2 | . 2 . Highest Loss Streak 2 | . 2 2 To Critical Strikes 1 | . 1 . Average Backups 6 | 3 6 3 Power 1 | . 2 1 Propulsion 2 | 2 3 1 Utility . | . . . Weapon 1 | . 1 . Tool/Special . | . . . Unused Backups 5 | . 3 2 Power 1 | . . 1 Propulsion 3 | . 3 . Utility . | . . . Weapon 1 | . . 1 Tool/Special . | . . . Average Slot Usage (%) 94 | . 94 93 Engine 12 | . 14 6 Treads 1 | . . 3 Wheel 2 | . 2 . Hover 15 | . 18 . Flight 8 | . 4 24 Device 11 | . 12 9 Storage 11 | . 13 . Processor 2 | . . 9 Energy Gun 5 | . 4 14 Ballistic Gun 9 | . 11 . Launcher 9 | . 10 . Impact Weapon 2 | . . 14 Peak Build Rating 13 | 6 7 13 Average Rating 6 | 4 6 8 On Entrance 4 | . 6 7 Avg Prop Armor Cover (%) 10 | 17 7 1 Naked Turns . | . . . Heaviest Build 27 | 13 14 27 Greatest Support 20 | 16 16 20 Greatest Overweight (x) 3 | . 2 3 Average Overweight (x) . | . . . Largest Inventory Capacity 8 | 8 8 5 Average Capacity 7 | 7 7 5 Most Carried 8 | 7 8 5 Average Carried 6 | 3 6 3 Final Capacity 8 | 8 5 5 Final Carried 6 | 6 4 5 Class Distribution -------------------- 100% | Mutant Dominant Class ---------------- Mutant | -10/Materials Mutant | -10/Subcaves Resources | -11 -10 -10 ----------- Run | Yrd Mat Sub Matter Collected 487 | 138 285 64 Remotely . | . . . Salvage Created 279 | . 225 54 Parts 16 | . 15 1 Haulers Intercepted . | . . . Recyclers Shooed 1 | . 1 . Parts Field Recycled . | . . . Retrieved Matter . | . . . Parts Self-Destructed 4 | . . 4 Prevented . | . . . Parts Restored . | . . . Kills | -11 -10 -10 ------- Run | Yrd Mat Sub Combat Hostiles Destroyed 8 | . 7 1 Guns 6 | . 6 . AOE 1 | . 1 . Classes Destroyed 4 | . 3 1 Operator 1 | . 1 . Swarmer 3 | . 3 . Grunt 4 | . 4 . Subdweller 1 | . . 1 Best Kill Streak 3 | . 3 1 Combat Bots Only 3 | . 3 1 Max Kills in Single Turn 1 | . 1 1 Gunslinging . | . . . Exploded 1 | . 1 . Melee . | . . . Uniques/NPCs Destroyed . | . . . Combat | -11 -10 -10 -------- Run | Yrd Mat Sub Hostile Shots Fired 58 | . 48 10 Missed 25 | . 20 5 Hits 33 | . 28 5 Projectile 33 | . 28 5 AOE 4 | . . 4 Critical Strikes 1 | . 1 . Damage Taken 639 | . 379 260 Core 253 | . 144 109 Absorbed by Shields . | . . . Core Remaining (%) 100 | 100 . . Volleys Fired 57 | . 45 12 Largest 2 | . 2 1 Hottest 60 | . 60 40 Shots Fired 59 | . 47 12 Gun 57 | . 45 12 Cannon . | . . . Launcher 2 | . 2 . Special . | . . . Kinetic 38 | . 38 . Thermal . | . . . Explosive 2 | . 2 . Electromagnetic 19 | . 7 12 Robot Hit Streak 8 | . 8 8 Robot Miss Streak 2 | . 2 1 Penetration Max . | . . . Secondary Targets . | . . . Shots Hit Robots 41 | . 31 10 Core Hits 18 | . 16 2 Critical Kills . | . . . Critical Parts Destroyed . | . . . Critical Strikes 1 | . . 1 Corrupt 1 | . . 1 Melee Attacks 1 | . 1 . Impact 1 | . 1 . Slashing . | . . . Piercing . | . . . Sneak Attacks . | . . . Combat Hostiles . | . . . Follow-up Attacks . | . . . Damage Inflicted 480 | . 366 114 Guns 365 | . 251 114 Cannons . | . . . Explosions 115 | . 115 . Melee . | . . . Ramming . | . . . Kinetic 194 | . 194 . Thermal . | . . . Explosive 115 | . 115 . Electromagnetic 171 | . 57 114 Impact . | . . . Slashing . | . . . Piercing . | . . . Highest Corruption 1 | . 1 1 Average Corruption 1 | . 1 1 Corruption Purged . | . . . Corruption Blocked . | . . . Effects 6 | . 4 2 Message Errors 1 | . 1 . Matter Fused 4 | . 2 2 Heat Flow Errors 1 | . 1 . Overload Shots . | . . . Overflow Damage . | . . . Projectiles . | . . . Explosions . | . . . Melee . | . . . Knockbacks . | . . . Impact . | . . . Kinetic . | . . . Secondary . | . . . Self-Inflicted Damage . | . . . Shots . | . . . Rammed . | . . . Targets Rammed . | . . . Kicked . | . . . Crushed . | . . . Highest Temperature 113 | . 113 . Average Temperature 14 | . 14 . Received Heat Transfer 180 | . 168 12 Siege Activations . | . . . Martial Activations . | . . . Shielding Activations . | . . . Robots Disrupted . | . . . Combat Hostiles . | . . . Robots Corrupted 1 | . . 1 Combat Hostiles 1 | . . 1 Parts Fried 3 | . . 3 Impact Corruptions . | . . . Robots Melted . | . . . Combat Hostiles . | . . . Parts Melted . | . . . Heat Transferred . | . . . Parts Sabotaged . | . . . Parts Stolen . | . . . Parts Stripped . | . . . Power Chain Reactions . | . . . Alert | -11 -10 -10 ------- Run | Yrd Mat Sub Maximum Alert Level . | . . . Low Security (%) 100 | 100 100 . Level 1 . | . . . Level 2 . | . . . Level 3 . | . . . Level 4 . | . . . Level 5 . | . . . High Security . | . . . Max Security . | . . . Peak Influence 105 | . 105 . Initial . | . . . Average 25 | . 26 . Influence Increases 334 | . 334 . Destroy 0b10 Robot/C 140 | . 140 . Destroy 0b10 Robot/NC 5 | . 5 . Destroy Leader 30 | . 30 . Disable Machine 30 | . 30 . Destroy Structure 9 | . 9 . Lose Combat Pursuer 120 | . 120 . Influence Decreases 334 | . 272 62 Entered New Map 30 | . . 30 Time Decay 272 | . 242 30 Lost Part 32 | . 30 2 Squads Dispatched 2 | . 2 . Investigation 1 | . 1 . Extermination . | . . . Reinforcement 1 | . 1 . Assault . | . . . Garrison . | . . . Intercept . | . . . Searches Triggered . | . . . Construction Impeded . | . . . Haulers Reinforced . | . . . Active Scanning Responses . | . . . Cargo Convoy Interrupts . | . . . Stealth | -11 -10 -10 --------- Run | Yrd Mat Sub Distress Signals 1 | . 1 . Communications Jammed . | . . . Distress Signals . | . . . Times Spotted 29 | . 23 6 Peak Tracking Total 5 | . 5 2 Tactical Retreats 5 | . 3 2 Traps | -11 -10 -10 ------- Run | Yrd Mat Sub Traps Triggered 2 | . 2 . Indirectly . | . . . Trap Hack Attempts . | . . . Triggered . | . . . Disarmed . | . . . Reprogrammed . | . . . Reused . | . . . Traps Extracted . | . . . Installed . | . . . Triggered . | . . . Machines | -11 -10 -10 ---------- Run | Yrd Mat Sub Machines Disabled 2 | . 2 . Max in Single Turn 1 | . 1 . Machines Repaired . | . . . Machines Dismantled . | . . . Machines Sabotaged . | . . . Overloaded Fab Kills . | . . . Hacking | -11 -10 -10 --------- Run | Yrd Mat Sub Machines Accessed 1 | . 1 . Terminals 1 | . 1 . Fabricators . | . . . Repair Stations . | . . . Recycling Units . | . . . Scanalyzers . | . . . Garrison Access . | . . . Total Hacks 3 | . 3 . Successful . | . . . Failed 3 | . 3 . Catastrophic . | . . . Database Lockouts . | . . . Manual 11 | . 11 . Terminals 3 | . 3 . Fabricators . | . . . Repair Stations . | . . . Recycling Units . | . . . Scanalyzers . | . . . Garrison Access . | . . . Terminal Hacks . | . . . Fabricator Hacks . | . . . Repair Station Hacks . | . . . Recycling Unit Hacks . | . . . Scanalyzer . | . . . Garrison Access Hacks . | . . . Unauthorized Hacks . | . . . Terminals . | . . . Fabricators . | . . . Repair Stations . | . . . Recycling Units . | . . . Scanalyzers . | . . . Garrison Access . | . . . Data Cores Recovered 1 | . 1 . Used . | . . . Hacking Detections 2 | . 2 . Full Trace Events 1 | . 1 . Feedback Events 1 | . 1 . Corruption 1 | . 1 . Feedback Blocked . | . . . Robot Schematics Acquired . | . . . Robots Built . | . . . Authchips . | . . . Time . | . . . Total Robot Build Rating . | . . . Part Schematics Acquired . | . . . Parts Built . | . . . Authchips . | . . . Time . | . . . Total Part Build Rating . | . . . Part Studies Acquired . | . . . Parts Repaired . | . . . Time . | . . . Parts Recycled . | . . . Recycled Matter . | . . . Retrieved Matter . | . . . Retrieved Components . | . . . Parts Scanalyzed . | . . . Part Schematics Acquired . | . . . Parts Damaged . | . . . Bothacking | -11 -10 -10 ------------ Run | Yrd Mat Sub Used RIF Installer . | . . . Robots Hacked . | . . . Non-combat . | . . . Combat . | . . . Robot Hacks Applied . | . . . Relay Couplers Released . | . . . Fabnet Peak Effective % . | . . . Robots Rewired . | . . . Allies Hacked . | . . . Hacks Repelled . | . . . Allies | -11 -10 -10 -------- Run | Yrd Mat Sub Total Allies . | . . . Largest Group . | . . . Highest-Rated Group . | . . . Highest-Rated Ally . | . . . Total Orders . | . . . Ally Attacks . | . . . Total Damage . | . . . Kills . | . . . Allies Corrupted . | . . . Allies Melted . | . . . Intel | -11 -10 -10 ------- Run | Yrd Mat Sub Active Infowar (turns) 856 | . 753 103 Terrain 856 | . 753 103 Robot Analysis Total . | . . . Derelict Logs Recovered . | . . . Drone Launches . | . . . Drone Recoveries . | . . . Exploration | -11 -10 -10 ------------- Run | Yrd Mat Sub Turns Passed 1068 | 56 858 154 Spaces Moved 926 | 42 701 183 Core 7 | 7 . . Treads 10 | . . 10 Legs . | . . . Wheels 128 | 35 93 . Hover 419 | . 419 . Flight 362 | . 189 173 Fastest Speed 37 | 50 37 37 Average Speed 91 | 91 100 56 Slowest Speed 277 | 100 205 277 Overloaded Moves . | . . . Propulsion Burnouts . | . . . Robots Hopped 2 | . 2 . Potential Cave-ins . | . . . Cave-ins Triggered . | . . . Exploration Rate (%) 26 | 3 68 9 Regions Visited 2 Branch Regions 1 Pre-discovered Areas . | . . . Known Exits Taken 1 | . 1 . Unknown Exits Taken 1 | 1 . . Scrap Searched 2 | . . 2 Spaces Dug . | . . . Terrain Destroyed 7 | . 7 . Melee . | . . . Projectile . | . . . AOE 7 | . 7 . Terrain Rammed . | . . . Walls Destroyed . | . . . Machines Disabled . | . . . Actions | -11 -10 -10 --------- Run | Yrd Mat Sub Total 1092 | 59 810 223 Wait 51 | . 33 18 Move 920 | 41 696 183 Hop 2 | . 2 . Pick Up 27 | 12 11 4 Fast Attach . | . . . Attach 15 | 6 6 3 Detach 1 | . 1 . Swap 7 | . 6 1 Drop 11 | . 9 2 Fire 57 | . 45 12 Melee 1 | . 1 . Ram . | . . . Kick . | . . . Crush . | . . . Escape Stasis . | . . . Rewire . | . . . Trap . | . . . Miscellaneous . | . . . Route ------- -11/Scrapyard -10/Materials (discovered 4 exits: [*Mat] / [*Min x2] / *Sub) -10/Subcaves History --------- Turn | Location | Event 8 | -11/Scrapyard | Discovered new exit (range 16) 57 | -11/Scrapyard | Entered Materials 57 | -10/Materials | Discovered new exit (range 15) 316 | -10/Materials | Build established: Mutant 437 | -10/Materials | Discovered new exit (range 15) 581 | -10/Materials | Discovered new exit (range 10) 682 | -10/Materials | Core integrity fell below 50% 836 | -10/Materials | Discovered new exit (range 12) 885 | -10/Materials | Identified exit to Subcaves 915 | -10/Materials | Entered Subcaves 1028 | -10/Subcaves | Disturbed a concealed Subdweller 1069 | -10/Subcaves | Destroyed by 41-7NG(R) with Subdweller Shrapnel Launcher Last Messages --------------- 01012_ Found 39 Matter. 01015_ Acquired Sub. Beam Cannon. 01017_ Acquired Scrap Shield. 01018_ Dropped Terrain Scanner. 01019_ Discarded Signal Interpreter. 01020_ Subatomizers dissect the Spk. Treads. 01023_ Acquired Spk. Treads. 01028_ HK-62Y(R) angrily emerges from the Twisted Machinery. 01032_ Subatomizers dissect the Terrain Scanner. 01033_ System corrupted: Matter fused (-5). 01040_ HK-62Y(R) misfires. 01042_ HK-62Y(R) affixes Scrap Shield Fragment to Scrap Shield. 01045_ HK-62Y(R) system terminally corrupted. 01045_ Disposable Heat Sink fried. 01045_ Sub. Power Source fried. 01045_ Sub. Monowheel fried. 01045_ Subatomizers dissect the Terrain Scanner. 01049_ Acquired Dirty Datajack. 01052_ Acquired 25 matter. 01057_ Subatomizers dissect the Terrain Scanner. Map ----- +----------------------------------------------------+ | ?????????????????????????????????????????????????? | | ?????????????????????????????????????????????????? | | ?????????????????????????????????????????????????? | | ?????????????????????????????????????????????????? | | ?????????????????????????????????????????????????? | | ?????????????????????????????????????????????????? | | ?????????????????????????????????????????????????? | | ?????????????????????????????????????????????????? | | ?????????????????????????????????????????????????? | | ?????????????????????????????????????????????????? | | ?????????????????????????????????????????????????? | | ???????????????????????????????? ????????????????? | | ??????????????????????????????? ????????????????? | | ??????????????????????????????? #????????????????? | | ??????????????????????????????? ##???????????????? | | ?????????????????????????????? #???????????????? | | ?????????????????????????????? #???????????????? | | ?????????????????????????????? #???????????????? | | ??????????????????????????#??? #???????????????? | | ?????????????????????????###?# #???????????????? | | ?????????????????????????# ## #??#??#??????????? | | ????????????????????###### #?? ##????????????? | | ????????????????????#<%## #??# #????????????? | | ????????????????????#! ;;; ### #???#????????? | | ????????????????????# ;; ; #?????????????? | | ????????????????????#%;! @R #?????????????? | | ??????????????#????#; ;; ##????????????? | | ?????????????????####;;;;;; ##???????????? | | ?????#??????????## ########R #???????????? | | ????????#???????# ##??## ## ##???????????? | | ################# #??# ##?? ##????????????? | | # ## # # ## ##?## #???#?????????????? | | ### #?????????????????? | | ## #?????????????????? | | #### ## ## #?????????????????? | | ##?##### ### ## ##?????????????????? | | ???????# #?###### ####??????????????????? | | ???????## ##??????## ##?????????????????????? | | ????????#######??????######??????????????????????? | | ????????????????#????????????????????????????????? | | ?????????????????#???????????????????????????????? | | ?????????????????????????????????????????????????? | | ????????????????????#????#???????????????????????? | | ???????#?????????????????????????????????????????? | | ???#??????????????????????????#??????????????????? | | ?????????????????????????????????????????????????? | | ?????????????????????????????????????????????????? | | ?????????????????????????????????????????????????? | | ?????????????????????????????????????????????????? | | ?????????????????????????????????????????????????? | +----------------------------------------------------+ Best States ------------- Heat Dissipation 25 Energy Generation 14 Energy Capacity 250 Matter Stores 300 Matter Capacity 300 Sight Range 16 Terrain Scan Range 14 Terrain Scan Density 10 Armor Coverage 800 Evasion (%) 62 Recoil Reduction 1 Item Schematics ----------------- None Robot Schematics ------------------ None Fabricated ------------ Nothing Repaired ---------- Nothing Studied --------- None Alien Tech Used ----------------- None Achievements -------------- None Challenges ------------ None Game ------ Seed NeutronAssemblyRailgun Manual? 0 Play Time 00:18:03 Cumulative 15.1 hours Start 2026.06.23 @ 22:57:30 End 2026.06.24 @ 16:31:49 Sessions 3 Manual Loads 0 Difficulty Rogue Special Mode None Game No. 41 Rogue 41 Adventurer 0 Explorer 0 Win Type - Total 0 Types 0/0/0/0/0/0/0/0/0/0 Lore% 10 Gallery% 18 Achievement% 16 Wizard Run 0 Options --------- Layout 1 ASCII 0 Keyboard 0 Movement Mouse Keybinds 0 Fullscreen 1 Font 24/Smallcaps Map View 76x35 Zoom Use 0% Tactical HUD 1 Map Filters NONE Filters NONE Steam 1 RUN: c97841e6-608e-47bf-bc4a-47c7bf8fea7a